{"text_format":"3","workbook":"xlsx","n_sheets":4,"sheets":["Biểu mẫu giá thầu","Dữ liệu biểu đồ","Phân tích chi phí","Tổng hợp chi phí giá thầu"],"not_rendered":{"charts":1,"images":2,"defined_names":11},"read":"whole","date_system":"1900"}

{"sheet":"Biểu mẫu giá thầu","index":0,"n_rows":21,"n_cols":6,"rows_kept":21,"merged":[[0,1,0,4],[1,1,1,2],[7,1,8,1],[7,2,8,2],[10,1,10,5],[12,1,12,5],[14,1,14,5],[15,1,15,2],[15,4,15,5],[16,1,16,2],[16,4,16,5],[18,1,18,5],[19,1,19,2],[19,4,19,5],[20,1,20,2],[20,4,20,5]]}
[null,"Biểu mẫu Đấu giá Xây dựng"]
[null,"Thông tin Chủ sở hữu",null,null,"Thông tin nhà thầu"]
[null,"Tên","Nhập Tên chủ sở hữu vào ô này",null,"Công ty","Nhập tên công ty của nhà thầu vào ô này"]
[null,"Địa chỉ","Nhập Địa chỉ của chủ sở hữu vào ô này",null,"Tên","Nhập Tên nhà thầu vào ô này"]
[null,"Thành phố, ZIP Tiểu bang","Nhập Thành phố, Tiểu bang và Mã Zip của chủ sở hữu vào ô này",null,"Địa chỉ","Nhập Địa chỉ nhà thầu vào ô này"]
[null,"Điện thoại","Nhập số điện thoại của chủ sở hữu vào ô này",null,"Thành phố, ZIP Tiểu bang","Nhập Thành phố, Tiểu bang và Mã Zip của nhà thầu vào ô này"]
[null,"Email","Nhập địa chỉ Email của chủ sở hữu vào ô này",null,"Điện thoại","Nhập số điện thoại của nhà thầu vào ô này"]
[null,"Tên dự án","Nhập tên dự án vào ô này",null,"Email","Nhập địa chỉ Email của nhà thầu vào ô này "]
[{"$nulls":4},"Ngày hoàn thành","Nhập ngày hoàn thành vào ô này"]
[null,"Phạm vi công việc"]
[null,"Phạm vi công việc của dự án tại đây. Nhập tất cả các thông số kỹ thuật bạn muốn. \n\nVăn bản mẫu: Đây sẽ là một dự án giả về việc xây dựng một bộ cầu thang lớn. Chúng tôi sẽ chỉ sử dụng gỗ 2x4 và 2x8, cũng như các dấu ngoặc nhọn để tạo khung. Cầu thang sẽ được cắt từ vật liệu 2x4. Không ít hơn 2\"ốc vít sẽ được sử dụng.  Bất kỳ móng tay sẽ không dưới 10 xu. Trọng lượng thiết kế tối thiểu là 500 pound cho mỗi bước. Các bước sẽ ngang bằng với mức của ngôi nhà. Một ván chạy sẽ được gắn chặt vào nhà. Nhà thầu sẽ lo dọn dẹp."]
[null,"Không bao gồm"]
[null,"Chi tiết dự án không được bao gồm ở đây. Nhập mọi thứ không có trong giá thầu này. \n\nVăn bản mẫu: Không có đường ray nào được cài đặt. Mặt bằng chủ đầu tư. Cầu thang được chủ sở hữu vẽ."]
[null,"Đề xuất của Công ty"]
[null,"Đề xuất của công ty ở đây. Nhập tổng quan về đề xuất bao gồm ai đang đề xuất công việc, ngày hoàn thành dự kiến và số lượng đề xuất.\n\nVăn bản mẫu: Chúng tôi, Tên công ty, đề xuất phạm vi công việc trên, sẽ được hoàn thành trước Ngày hoàn thành với số lượng Tổng số tiền."]
[]
[null,"Được gửi bởi (Đại diện Công ty)",null,null,"Ngày"]
[null,"Sự chấp thuận của Chủ sở hữu"]
[null,"Chủ đầu tư chấp nhận đến đây. Nhập tên Chủ sở hữu vào một tuyên bố xác nhận bao gồm ngày hoàn thành và tổng số tiền được nêu trong đề xuất của công ty. \n\nVăn bản mẫu: Tôi, Tên chủ sở hữu, chấp nhận phạm vi công việc trên, được đề xuất hoàn thành trước Ngày hoàn thành với số lượng Tổng số tiền."]
[]
[null,"Được gửi bởi (chủ sở hữu nhà hoặc đại diện được ủy quyền)",null,null,"Ngày"]

{"sheet":"Dữ liệu biểu đồ","index":1,"n_rows":7,"n_cols":3,"rows_kept":7,"hidden":true}
[]
[null,null,"Tổng cộng"]
[null,{"$f":"INDEX(Mục_giá_thầu[#Data],MATCH(1,Mục_giá_thầu[Chi phí Được xếp hạng],0),2)","v":"Phí người lao động"},{"$f":"INDEX(Mục_giá_thầu[#Data],MATCH(1,Mục_giá_thầu[Chi phí Được xếp hạng],0),4)","v":200}]
[null,{"$f":"INDEX(Mục_giá_thầu[#Data],MATCH(2,Mục_giá_thầu[Chi phí Được xếp hạng],0),2)","v":"gỗ xẻ 2x4x10"},{"$f":"INDEX(Mục_giá_thầu[#Data],MATCH(2,Mục_giá_thầu[Chi phí Được xếp hạng],0),4)","v":99.39999999999999}]
[null,{"$f":"INDEX(Mục_giá_thầu[#Data],MATCH(3,Mục_giá_thầu[Chi phí Được xếp hạng],0),2)","v":"Dấu ngoặc nhọn"},{"$f":"INDEX(Mục_giá_thầu[#Data],MATCH(3,Mục_giá_thầu[Chi phí Được xếp hạng],0),4)","v":74.7}]
[null,{"$f":"INDEX(Mục_giá_thầu[#Data],MATCH(4,Mục_giá_thầu[Chi phí Được xếp hạng],0),2)","v":"gỗ xẻ 2x8x10"},{"$f":"INDEX(Mục_giá_thầu[#Data],MATCH(4,Mục_giá_thầu[Chi phí Được xếp hạng],0),4)","v":33.75}]
[null,{"$f":"INDEX(Mục_giá_thầu[#Data],MATCH(5,Mục_giá_thầu[Chi phí Được xếp hạng],0),2)","v":"Đôi găng tay, da"},{"$f":"INDEX(Mục_giá_thầu[#Data],MATCH(5,Mục_giá_thầu[Chi phí Được xếp hạng],0),4)","v":15.5}]

{"sheet":"Phân tích chi phí","index":2,"n_rows":14,"n_cols":6,"rows_kept":14,"merged":[[0,1,0,4],[1,1,1,4]]}
[null,"Phân tích chi phí",{"$nulls":3}," "]
[null,"Danh sách vật liệu và chi phí"]
[null,"SL.","Mô tả","Chi phí","Tổng cộng","Chi phí Được xếp hạng"]
[null,5,"gỗ xẻ 2x8x10",{"v":6.75,"d":"6.75 ₫"},{"$f":"IFERROR(Mục_giá_thầu[[#This Row],[Chi phí]]*Mục_giá_thầu[[#This Row],[SL.]], \"\")","v":{"v":33.75,"d":"33.75 ₫"}},{"$f":"_xlfn.RANK.EQ(Mục_giá_thầu[[#This Row],[Tổng cộng]],Mục_giá_thầu[Tổng cộng])","v":4}]
[null,20,"gỗ xẻ 2x4x10",{"v":4.97,"d":"4.97 ₫"},{"$f":"IFERROR(Mục_giá_thầu[[#This Row],[Chi phí]]*Mục_giá_thầu[[#This Row],[SL.]], \"\")","v":{"v":99.39999999999999,"d":"99.40 ₫"}},{"$f":"_xlfn.RANK.EQ(Mục_giá_thầu[[#This Row],[Tổng cộng]],Mục_giá_thầu[Tổng cộng])","v":2}]
[null,30,"Dấu ngoặc nhọn",{"v":2.49,"d":"2.49 ₫"},{"$f":"IFERROR(Mục_giá_thầu[[#This Row],[Chi phí]]*Mục_giá_thầu[[#This Row],[SL.]], \"\")","v":{"v":74.7,"d":"74.70 ₫"}},{"$f":"_xlfn.RANK.EQ(Mục_giá_thầu[[#This Row],[Tổng cộng]],Mục_giá_thầu[Tổng cộng])","v":3}]
[null,2,"Hộp ốc vít, 2 in",{"v":6.67,"d":"6.67 ₫"},{"$f":"IFERROR(Mục_giá_thầu[[#This Row],[Chi phí]]*Mục_giá_thầu[[#This Row],[SL.]], \"\")","v":{"v":13.34,"d":"13.34 ₫"}},{"$f":"_xlfn.RANK.EQ(Mục_giá_thầu[[#This Row],[Tổng cộng]],Mục_giá_thầu[Tổng cộng])","v":6}]
[null,2,"Hộp móng tay, 10 penny",{"v":3.25,"d":"3.25 ₫"},{"$f":"IFERROR(Mục_giá_thầu[[#This Row],[Chi phí]]*Mục_giá_thầu[[#This Row],[SL.]], \"\")","v":{"v":6.5,"d":"6.50 ₫"}},{"$f":"_xlfn.RANK.EQ(Mục_giá_thầu[[#This Row],[Tổng cộng]],Mục_giá_thầu[Tổng cộng])","v":7}]
[null,2,"Đôi găng tay, da",{"v":7.75,"d":"7.75 ₫"},{"$f":"IFERROR(Mục_giá_thầu[[#This Row],[Chi phí]]*Mục_giá_thầu[[#This Row],[SL.]], \"\")","v":{"v":15.5,"d":"15.50 ₫"}},{"$f":"_xlfn.RANK.EQ(Mục_giá_thầu[[#This Row],[Tổng cộng]],Mục_giá_thầu[Tổng cộng])","v":5}]
[null,2,"Phí người lao động",{"v":100,"d":"100.00 ₫"},{"$f":"IFERROR(Mục_giá_thầu[[#This Row],[Chi phí]]*Mục_giá_thầu[[#This Row],[SL.]], \"\")","v":{"v":200,"d":"200.00 ₫"}},{"$f":"_xlfn.RANK.EQ(Mục_giá_thầu[[#This Row],[Tổng cộng]],Mục_giá_thầu[Tổng cộng])","v":1}]
[4,null,null,"Tổng phụ",{"$f":"SUBTOTAL(109,Mục_giá_thầu[Tổng cộng])","v":{"v":443.18999999999994,"d":"443.19 ₫"}}]
[5,null,null,"Thuế suất",{"v":0.075,"d":"7.50%"}]
[{"$nulls":3},"Thuế",{"$f":"IFERROR(Thuế_suất*Mục_giá_thầu[[#Totals],[Tổng cộng]], \"\")","v":{"v":33.23924999999999,"d":"33.24 ₫"}}]
[{"$nulls":3},"Tổng cuối",{"$f":"IFERROR(Thuế+Mục_giá_thầu[[#Totals],[Tổng cộng]], \"\")","v":{"v":476.4292499999999,"d":"476.43 ₫"}}]

{"sheet":"Tổng hợp chi phí giá thầu","index":3,"n_rows":3,"n_cols":4,"rows_kept":3}
[null,"Tóm tắt Chi phí Giá thầu"]
[null,"Phân tích Vật liệu và Chi phí",null,"Ghi chú"]
[null,"Biểu đồ hình tròn hiển thị 5 chi phí hàng đầu cho mỗi nguyên liệu. Dữ liệu dựa trên bảng Mục giá thầu trong bảng tính Phân tích chi phí",null,"Nhập Ghi chú vào ô này."]